Cogmind - Beta 16 @@@ ROGUE MODE // 2025.12.28 @ 23:14:57 Player: Zaros426 Result: Destroyed by D-53 Grenadier with Mini Grenade Launcher Performance ------------- Evolutions (0) 0 Regions Visited (2) 400 Robots Destroyed (32) 160 Value Destroyed (570) 570 Prototype IDs (2) 40 Alien Tech Used (0) 0 Bonus (0) 0 TOTAL SCORE: 1170 Bonus ------- None Cogmind --------- Core Integrity 0/250 Matter 261/300 Energy 67/100 System Corruption 0% Temperature Cool (0) Movement Core (750) Ox14 Location -10/Mines Parts ------- > --- POWER (1) -------- (None) > --- PROPULSION (2) --- (None) > --- UTILITY (2) ------ High-capacity Storage Unit > --- WEAPON (2) ------- Light Assault Rifle Grenade Launcher > --- INVENTORY (20) --- Aluminum Leg Aluminum Leg Large Storage Unit Huge Storage Unit Large Matter Pod (150) Structural Scanner Improved Terrain Scanner Seismic Detector Seismic Detector Targeting Computer ECM Suite Mining Laser Peak State ------------ > --- POWER ------------ Ion Engine > --- PROPULSION ------- Light Treads Light Treads > --- UTILITY ---------- Improved Terrain Scanner Seismic Detector > --- WEAPON ----------- Medium Laser Light Assault Rifle > --- INVENTORY -------- Large Matter Pod Small Laser Mining Laser [Rating: 9] Favorites ----------- Power Ion Engine Engine Ion Engine Propulsion Light Treads Treads Light Treads Leg Aluminum Leg Utility High-capacity Storage Unit Device Seismic Detector Storage High-capacity Storage Unit Protection Light Armor Plating Weapon Light Assault Rifle Energy Gun Medium Laser Ballistic Gun Light Assault Rifle Launcher Grenade Launcher Special Weapon Mining Laser Build | -11 -10 -10 ------- Run | Yrd Mat Min Slots Evolved . | . . . Power . | . . . Propulsion . | . . . Utility . | . . . Weapon . | . . . Parts Attached 17 | 6 9 2 Power 1 | 1 . . Engine 1 | 1 . . Core . | . . . Reactor . | . . . Propulsion 4 | 2 2 . Treads 2 | 2 . . Leg 2 | . 2 . Wheel . | . . . Hover . | . . . Flight . | . . . Utility 6 | 1 5 . Device 2 | 1 1 . Storage 2 | . 2 . Processor . | . . . Hackware . | . . . Protection 2 | . 2 . Artifact . | . . . Weapon 6 | 2 2 2 Energy Gun 1 | 1 . . Energy Cannon . | . . . Ballistic Gun 2 | 1 . 1 Ballistic Cannon . | . . . Launcher 1 | . . 1 Special Weapon 2 | . 2 . Impact Weapon . | . . . Slashing Weapon . | . . . Piercing Weapon . | . . . Special Melee Weapon . | . . . Unidentified Prototypes . | . . . Parts Lost 9 | . 2 7 Power 1 | . . 1 Propulsion 4 | . 1 3 Utility 2 | . 1 1 Weapon 2 | . . 2 Highest Loss Streak 7 | . 1 7 To Critical Strikes . | . . . Average Backups 9 | . 10 15 Power . | . . . Propulsion 1 | . 1 3 Utility 6 | . 6 9 Weapon 2 | . 2 3 Tool/Special . | . . . Unused Backups 10 | . 2 8 Power . | . . . Propulsion 2 | . . 2 Utility 7 | . 1 6 Weapon 1 | . 1 . Tool/Special . | . . . Average Slot Usage (%) 99 | . 99 94 Engine 13 | . 14 11 Treads 17 | . 17 . Leg 10 | . 10 25 Device 9 | . 9 . Storage 11 | . 11 14 Protection 7 | . 7 14 Energy Gun 13 | . 13 14 Ballistic Gun 14 | . 14 14 Peak Build Rating 9 | 6 9 8 Average Rating 7 | 4 8 7 On Entrance 4 | . 6 8 Avg Prop Armor Cover (%) . | . . . Naked Turns . | . . . Heaviest Build 51 | 9 51 51 Greatest Support 40 | 40 40 20 Greatest Overweight (x) 2 | . 2 2 Average Overweight (x) 1 | . 1 2 Largest Inventory Capacity 20 | 5 20 20 Average Capacity 16 | 5 17 20 Most Carried 16 | 3 16 15 Average Carried 10 | . 10 14 Final Capacity 20 | 5 20 20 Final Carried 15 | 3 15 12 Class Distribution -------------------- 100% | Mutant Dominant Class ---------------- Mutant | -10/Materials Mutant | -10/Mines Resources | -11 -10 -10 ----------- Run | Yrd Mat Min Matter Collected 591 | 272 319 . Remotely . | . . . Salvage Created 967 | 109 858 . Parts 62 | 9 53 . Haulers Intercepted 2 | . 2 . Recyclers Shooed 2 | . 2 . Parts Field Recycled . | . . . Retrieved Matter . | . . . Parts Self-Destructed . | . . . Prevented . | . . . Parts Restored . | . . . Kills | -11 -10 -10 ------- Run | Yrd Mat Min Combat Hostiles Destroyed 20 | . 20 . Guns 20 | . 20 . Classes Destroyed 7 | 2 5 . Worker 1 | . 1 . Tunneler 4 | 2 2 . Hauler 2 | . 2 . Recycler 2 | 1 1 . Watcher 3 | . 3 . Swarmer 9 | . 9 . Grunt 11 | . 11 . Best Kill Streak 9 | 3 9 . Combat Bots Only 8 | . 8 . Max Kills in Single Turn 1 | 1 1 . Gunslinging . | . . . Exploded . | . . . Melee . | . . . Uniques/NPCs Destroyed . | . . . Combat | -11 -10 -10 -------- Run | Yrd Mat Min Hostile Shots Fired 113 | . 93 20 Missed 27 | . 23 4 Hits 86 | . 70 16 Projectile 86 | . 70 16 AOE 12 | . . 12 Critical Strikes 1 | . . 1 Damage Taken 1282 | . 724 558 Core 256 | . 102 154 Absorbed by Shields . | . . . Core Remaining (%) 100 | 100 . . Volleys Fired 116 | 12 101 3 Largest 2 | 2 2 2 Hottest 100 | 70 100 70 Shots Fired 221 | 24 191 6 Gun 217 | 24 188 5 Cannon . | . . . Launcher 1 | . . 1 Special 3 | . 3 . Kinetic 113 | 12 98 3 Thermal 107 | 12 93 2 Explosive 1 | . . 1 Electromagnetic . | . . . Robot Hit Streak 13 | 12 13 5 Robot Miss Streak 5 | 5 5 1 Penetration Max . | . . . Secondary Targets 5 | . 5 . Max Gunslinging Chain 1 | . 1 . Shots Hit Robots 130 | 13 112 5 Core Hits 60 | 4 53 3 Critical Kills . | . . . Critical Parts Destroyed . | . . . Critical Strikes 5 | . 5 . Burn 5 | . 5 . Melee Attacks . | . . . Impact . | . . . Slashing . | . . . Piercing . | . . . Sneak Attacks . | . . . Combat Hostiles . | . . . Follow-up Attacks . | . . . Damage Inflicted 1463 | 145 1226 92 Guns 1410 | 145 1226 39 Cannons . | . . . Explosions 53 | . . 53 Melee . | . . . Ramming . | . . . Kinetic 597 | 47 524 26 Thermal 813 | 98 702 13 Explosive 53 | . . 53 Electromagnetic . | . . . Impact . | . . . Slashing . | . . . Piercing . | . . . Highest Corruption . | . . . Average Corruption . | . . . Corruption Purged . | . . . Corruption Blocked . | . . . Overload Shots . | . . . Overflow Damage 20 | . . 20 Projectiles . | . . . Explosions 20 | . . 20 Melee . | . . . Knockbacks . | . . . Impact . | . . . Kinetic . | . . . Secondary . | . . . Self-Inflicted Damage . | . . . Shots . | . . . Rammed . | . . . Targets Rammed . | . . . Kicked . | . . . Crushed . | . . . Highest Temperature 290 | 180 290 66 Average Temperature 59 | 92 55 44 Received Heat Transfer 321 | . 276 45 Effects 1 | . 1 . Energy Bleed 1 | . 1 . Siege Activations . | . . . Martial Activations . | . . . Shielding Activations . | . . . Robots Disrupted . | . . . Combat Hostiles . | . . . Robots Corrupted . | . . . Combat Hostiles . | . . . Parts Fried . | . . . Impact Corruptions . | . . . Robots Melted . | . . . Combat Hostiles . | . . . Parts Melted 3 | . 3 . Heat Transferred 2701 | 296 2368 37 Parts Sabotaged . | . . . Parts Stolen . | . . . Parts Stripped . | . . . Power Chain Reactions . | . . . Alert | -11 -10 -10 ------- Run | Yrd Mat Min Maximum Alert Level 1 | . 1 . Low Security (%) 94 | 100 94 100 Level 1 5 | . 5 . Level 2 . | . . . Level 3 . | . . . Level 4 . | . . . Level 5 . | . . . High Security . | . . . Max Security . | . . . Peak Influence 235 | 10 235 48 Initial 48 | . . 48 Average 77 | 1 83 35 Influence Increases 654 | 15 631 8 Destroy 0b10 Robot/C 400 | . 400 . Destroy 0b10 Robot/NC 60 | 15 45 . Destroy Leader 100 | . 100 . Successful Hack 23 | . 23 . Select Force Hacks 60 | . 60 . Destroy Structure 11 | . 3 8 Influence Decreases 646 | 15 505 126 Entered New Map 78 | . . 78 Time Decay 510 | 15 485 10 Lost Part 58 | . 20 38 Squads Dispatched 6 | . 6 . Investigation 3 | . 3 . Extermination . | . . . Reinforcement 3 | . 3 . Assault . | . . . Garrison . | . . . Intercept . | . . . Searches Triggered . | . . . Construction Impeded . | . . . Haulers Reinforced . | . . . Active Scanning Responses . | . . . Cargo Convoy Interrupts . | . . . Stealth | -11 -10 -10 --------- Run | Yrd Mat Min Distress Signals 1 | . 1 . Communications Jammed . | . . . Distress Signals . | . . . Times Spotted 41 | . 36 5 Peak Tracking Total 4 | . 4 4 Tactical Retreats . | . . . Traps | -11 -10 -10 ------- Run | Yrd Mat Min Traps Triggered 1 | . 1 . Indirectly . | . . . Trap Hack Attempts . | . . . Triggered . | . . . Disarmed . | . . . Reprogrammed . | . . . Reused . | . . . Traps Extracted . | . . . Installed . | . . . Triggered . | . . . Machines | -11 -10 -10 ---------- Run | Yrd Mat Min Machines Disabled . | . . . Max in Single Turn . | . . . Machines Repaired . | . . . Machines Dismantled . | . . . Machines Sabotaged . | . . . Overloaded Fab Kills . | . . . Hacking | -11 -10 -10 --------- Run | Yrd Mat Min Machines Accessed 8 | . 8 . Terminals 6 | . 6 . Fabricators . | . . . Repair Stations . | . . . Recycling Units 2 | . 2 . Scanalyzers . | . . . Garrison Access . | . . . Total Hacks 25 | . 25 . Successful 16 | . 16 . Failed 9 | . 9 . Catastrophic 5 | . 5 . Database Lockouts . | . . . Manual 18 | . 18 . Terminals 23 | . 23 . Fabricators . | . . . Repair Stations . | . . . Recycling Units 2 | . 2 . Scanalyzers . | . . . Garrison Access . | . . . Terminal Hacks 8 | . 8 . Robot Analysis 2 | . 2 . Prototype ID Bank 1 | . 1 . Terminal Index 1 | . 1 . Locate Traps 1 | . 1 . Patrol Status 1 | . 1 . Recall Investigation 1 | . 1 . Zone Layout 1 | . 1 . Fabricator Hacks . | . . . Repair Station Hacks . | . . . Recycling Unit Hacks . | . . . Scanalyzer . | . . . Garrison Access Hacks . | . . . Unauthorized Hacks 8 | . 8 . Terminals 6 | . 6 . Botnet 2 | . 2 . Skim 4 | . 4 . Fabricators . | . . . Repair Stations . | . . . Recycling Units 2 | . 2 . Tunnel 2 | . 2 . Scanalyzers . | . . . Garrison Access . | . . . Data Cores Recovered . | . . . Used . | . . . Hacking Detections 6 | . 6 . Full Trace Events 1 | . 1 . Feedback Events . | . . . Feedback Blocked . | . . . Robot Schematics Acquired . | . . . Robots Built . | . . . Authchips . | . . . Time . | . . . Total Robot Build Rating . | . . . Part Schematics Acquired . | . . . Parts Built . | . . . Authchips . | . . . Time . | . . . Total Part Build Rating . | . . . Part Studies Acquired . | . . . Parts Repaired . | . . . Time . | . . . Parts Recycled . | . . . Recycled Matter . | . . . Retrieved Matter . | . . . Retrieved Components . | . . . Parts Scanalyzed . | . . . Part Schematics Acquired . | . . . Parts Damaged . | . . . Bothacking | -11 -10 -10 ------------ Run | Yrd Mat Min Used RIF Installer . | . . . Robots Hacked . | . . . Non-combat . | . . . Combat . | . . . Robot Hacks Applied . | . . . Relay Couplers Released . | . . . Fabnet Peak Effective % . | . . . Robots Rewired . | . . . Allies Hacked . | . . . Hacks Repelled . | . . . Allies | -11 -10 -10 -------- Run | Yrd Mat Min Total Allies . | . . . Largest Group . | . . . Highest-Rated Group . | . . . Highest-Rated Ally . | . . . Total Orders . | . . . Ally Attacks . | . . . Total Damage . | . . . Kills . | . . . Allies Corrupted . | . . . Allies Melted . | . . . Intel | -11 -10 -10 ------- Run | Yrd Mat Min Active Infowar (turns) 992 | 49 943 . Terrain 337 | . 337 . Seismic 990 | 49 941 . Robot Analysis Total 2 | . 2 . Derelict Logs Recovered . | . . . Drone Launches . | . . . Drone Recoveries . | . . . Exploration | -11 -10 -10 ------------- Run | Yrd Mat Min Turns Passed 2098 | 134 1922 42 Spaces Moved 764 | 59 693 12 Core 4 | 4 . . Treads 515 | 55 460 . Legs 245 | . 233 12 Wheels . | . . . Hover . | . . . Flight . | . . . Fastest Speed 50 | 50 160 260 Average Speed 220 | 152 225 260 Slowest Speed 260 | 160 260 260 Overloaded Moves . | . . . Propulsion Burnouts . | . . . Robots Hopped . | . . . Potential Cave-ins . | . . . Cave-ins Triggered . | . . . Exploration Rate (%) 38 | 4 99 11 Regions Visited 2 Branch Regions 1 Pre-discovered Areas 2 | . 2 . Known Exits Taken . | . . . Unknown Exits Taken 2 | 1 1 . Scrap Searched . | . . . Spaces Dug 3 | . 3 . Terrain Destroyed 12 | . 3 9 Melee . | . . . Projectile 3 | . 3 . AOE 9 | . . 9 Terrain Rammed . | . . . Walls Destroyed . | . . . Machines Disabled . | . . . Actions | -11 -10 -10 --------- Run | Yrd Mat Min Total 969 | 79 872 18 Wait 49 | . 49 . Move 762 | 58 692 12 Hop . | . . . Pick Up 19 | 3 16 . Fast Attach 7 | 6 1 . Attach 5 | . 2 3 Detach . | . . . Swap 8 | . 8 . Drop 3 | . 3 . Fire 116 | 12 101 3 Melee . | . . . Ram . | . . . Kick . | . . . Crush . | . . . Escape Stasis . | . . . Rewire . | . . . Trap . | . . . Miscellaneous . | . . . Route ------- -11/Scrapyard -10/Materials (discovered 6 exits: [*Mat x3] / [*Min x2] / [*Sub]) -10/Mines History --------- Turn | Location | Event 14 | -11/Scrapyard | Discovered new exit (range 15) 135 | -11/Scrapyard | Entered Materials 302 | -10/Materials | Build established: Mutant 478 | -10/Materials | Destroyed 8 combat bots 583 | -10/Materials | Discovered new exit (range 6) 743 | -10/Materials | Discovered new exit (range 8) 1229 | -10/Materials | Discovered new exit (range 4) 1477 | -10/Materials | Discovered new exit (range 7) 1946 | -10/Materials | Discovered new exit (range 5) 1973 | -10/Materials | Discovered new exit (range 6) 2057 | -10/Materials | Entered Mines 2058 | -10/Mines | Assembled infested the area 2086 | -10/Mines | Joined a pair of Derelicts in attacking an 0b10 outpost 2090 | -10/Mines | Core integrity fell below 50% 2097 | -10/Mines | Core integrity fell below 20% 2099 | -10/Mines | Destroyed by D-53 Grenadier with Mini Grenade Launcher Last Messages --------------- 02087_ C-45 Heavy ARC bursts open, deploying its payload. 02087_ D-53 Grenadier unfolds itself. 02087_ 0Z-A43(g) destroyed. 02087_ Ion Engine destroyed. 02087_ Machine disabled. 02088_ The unstable cave ceiling collapses. 02089_ Critical hit (Burn: +37). 02089_ Aluminum Leg destroyed. 02089_ Machine disabled. 02091_ Y-45 Defender destroyed. 02092_ 00-K59(g) destroyed. 02093_ The unstable cave ceiling collapses. 02093_ Aluminum Leg destroyed. 02094_ Lgt. Armor Plating destroyed. 02095_ Lgt. Treads destroyed. 02095_ Lgt. Assault Rifle destroyed. 02095_ Med. Laser destroyed. 02097_ The unstable cave ceiling collapses. 02097_ Y-45 Defender destroyed. 02097_ Destroyed Seismic Detector. Map ----- +----------------------------------------------------+ | | | | | | | | | | | | | | | | | | | | | | | | | | | | | ?????????????????????????????????????????????????? | | ?????????????????????????????????????????????????? | | ?????????????????????????????????????????????????? | | ?????????????????????????????????????????????????? | | ?????????????????????#######?????????????????????? | | ?????????????????????# ##????????????????????? | | ?????????????????????# []"##???????????????????? | | ????????????????????## ##??????????????????? | | ????????????????????# = #??????????????????? | | ????????????????????# #??????????????????? | | ????????????????????# ##?????????????????? | | ????????????#######?# @ #?????????????????? | | ????????????? #?# #?????????????????? | | ?????????????? ### #???????????????? | | ???????????????# ## d #???????????????? | | ??????????????## # d ???????????? | | ?????????????## ##????????????? | | ?????????????# ##?????????????? | | ????????????## ##### t #??????????????? | | ???????????## ##????# #?????????????? | | ???????????# t ####?????? #?????????????? | | ???????????# ##?????????? #?????????????? | | ???????????## ##????????????##?????????????? | | ????????????## t ##????????????????????????????? | | ?????????????## #?????????????????????????????? | | ??????????????## ##?????????????????????????????? | | ???????????????# #??????????????????????????????? | | ???????????????# #??????????????????????????????? | | ???????????????# ??????????????????????????????? | | ???????????????### #?????????????????????????????? | | ?????????????????? #?????????????????????????????? | | ?????????????????? #?????????????????????????????? | | ?????????????????? #?????????????????????????????? | | ?????????????????? ?????????????????????????????? | | ?????????????????? #?????????????????????????????? | | ?????????????????? ??????????????????????????????? | +----------------------------------------------------+ Best States ------------- Heat Dissipation 25 Energy Generation 10 Energy Capacity 250 Matter Stores 300 Matter Capacity 300 Sight Range 16 Terrain Scan Range 16 Terrain Scan Density 10 Armor Coverage 150 Evasion (%) 40 Recoil Reduction 2 Item Schematics ----------------- None Robot Schematics ------------------ None Fabricated ------------ Nothing Repaired ---------- Nothing Studied --------- None Alien Tech Used ----------------- None Achievements -------------- None Challenges ------------ None Game ------ Seed HackingPointyAutogun Manual? 0 Play Time 00:12:43 Cumulative 63.2 hours Start 2025.12.28 @ 23:02:54 End 2025.12.28 @ 23:14:57 Sessions 1 Manual Loads 0 Difficulty Rogue Special Mode None Game No. 24 Rogue 24 Adventurer 0 Explorer 0 Win Type - Total 0 Types 0/0/0/0/0/0/0/0/0/0 Lore% 50 Gallery% 55 Achievement% 50 Wizard Run 0 Options --------- Layout 0 ASCII 0 Keyboard 0 Movement Mouse Keybinds 0 Fullscreen 1 Font 24/Smallcaps Map View 183x50 Zoom Use 0% Tactical HUD 1 Map Filters NONE Filters NONE Steam 1 RUN: af36bc7b-2e23-4571-b35c-5004c4561c3c